[Event "Titled Tuesday Blitz November 29 Late 2022"]
[White "Quinones Garcia, Santiago"]
[Black "Calcada, Lucas Galvan"]
[WhiteFideId "4408497"]
[BlackFideId "22746099"]
[WhiteElo "2249"]
[BlackElo "1523"]
[Result "1-0"]
[Round "03"]
[TimeControl "180+1"]
[Date "2022.11.30"]
[WhiteClock "0:00:17"]
[BlackClock "0:00:01"]

1. e4 {[%clk 0:02:54]}  c5 {[%clk 0:02:47]} 2. Nf3 {[%clk 0:02:53]}  d6 {[%clk 0:02:46]} 3. d4 {[%clk 0:02:51]}  cxd4 {[%clk 0:02:26]} 4. Nxd4 {[%clk 0:02:52]}  Nf6 {[%clk 0:02:26]} 5. Nc3 {[%clk 0:02:52]}  a6 {[%clk 0:02:25]} 6. a4 {[%clk 0:02:50]}  e6 {[%clk 0:02:25]} 7. Be3 {[%clk 0:02:47]}  Qc7 {[%clk 0:02:25]} 8. Be2 {[%clk 0:02:47]}  Be7 {[%clk 0:02:24]} 9. O-O {[%clk 0:02:47]}  O-O {[%clk 0:02:18]} 10. f4 {[%clk 0:02:46]}  Nbd7 {[%clk 0:02:05]} 11. Bf3 {[%clk 0:02:26]}  Nb6 {[%clk 0:01:59]} 12. Qe1 {[%clk 0:02:20]}  Nc4 {[%clk 0:01:58]} 13. Bc1 {[%clk 0:02:19]}  Qb6 {[%clk 0:01:46]} 14. Rf2 {[%clk 0:02:16]}  e5 {[%clk 0:01:43]} 15. Nb3 {[%clk 0:02:11]}  exf4 {[%clk 0:01:33]} 16. a5 {[%clk 0:02:04]}  Qc7 {[%clk 0:01:26]} 17. Bxf4 {[%clk 0:02:03]}  Nxb2 {[%clk 0:01:21]} 18. Nd4 {[%clk 0:01:47]}  Nc4 {[%clk 0:01:19]} 19. Nf5 {[%clk 0:01:38]}  Bxf5 {[%clk 0:01:17]} 20. exf5 {[%clk 0:01:38]}  Rfe8 {[%clk 0:01:16]} 21. Re2 {[%clk 0:01:32]}  Bf8 {[%clk 0:01:14]} 22. Rb1 {[%clk 0:01:25]}  Rxe2 {[%clk 0:01:05]} 23. Qxe2 {[%clk 0:01:25]}  Re8 {[%clk 0:01:01]} 24. Qd3 {[%clk 0:01:21]}  Ne5 {[%clk 0:00:56]} 25. Bxe5 {[%clk 0:01:18]}  dxe5 {[%clk 0:00:57]} 26. Rxb7 {[%clk 0:01:17]}  Qxa5 {[%clk 0:00:58]} 27. h3 {[%clk 0:01:12]}  Qa1+ {[%clk 0:00:39]} 28. Kh2 {[%clk 0:01:12]}  Qe1 {[%clk 0:00:34]} 29. Nd5 {[%clk 0:00:59]}  Nxd5 {[%clk 0:00:32]} 30. Bxd5 {[%clk 0:00:42]}  Re7 {[%clk 0:00:25]} 31. Bxf7+ {[%clk 0:00:38]}  Kh8 {[%clk 0:00:13]} 32. Qd8 {[%clk 0:00:38]}  h5 {[%clk 0:00:10]} 33. Qxf8+ {[%clk 0:00:36]}  Kh7 {[%clk 0:00:10]} 34. Bg6+ {[%clk 0:00:23]}  Kh6 {[%clk 0:00:07]} 35. Qxe7 {[%clk 0:00:22]}  h4 {[%clk 0:00:05]} 36. Qxg7+ {[%clk 0:00:20]}  Kg5 {[%clk 0:00:05]} 37. Bh7+ {[%clk 0:00:20]}  Kf4 {[%clk 0:00:04]} 38. Qg4+ {[%clk 0:00:20]}  Ke3 {[%clk 0:00:03]} 39. Qf3+ {[%clk 0:00:20]}  Kd2 {[%clk 0:00:03]} 40. Rd7+ {[%clk 0:00:18]}  Kc1 {[%clk 0:00:03]} 41. Qa3+ {[%clk 0:00:18]}  Kxc2 {[%clk 0:00:02]} 42. Rc7+ {[%clk 0:00:17]}  Kd2 {[%clk 0:00:01]} 43. Qc3+ {[%clk 0:00:17]} 1-0


[Site "https://www.chess.com"]

[Event "Titled Tuesday Blitz November 29 Late 2022"]
[White "Rian, Kapriaga"]
[Black "Cruz Gomez, Miguel Angel"]
[WhiteFideId "7103263"]
[BlackFideId "5137160"]
[WhiteElo "2327"]
[BlackElo "2126"]
[Result "1-0"]
[Round "03"]
[TimeControl "180+1"]
[Date "2022.11.30"]
[WhiteClock "0:00:31"]
[BlackClock "0:00:20"]

1. d4 {[%clk 0:03:00]}  d5 {[%clk 0:02:59]} 2. Bf4 {[%clk 0:02:58]}  c5 {[%clk 0:02:57]} 3. e3 {[%clk 0:02:58]}  Nc6 {[%clk 0:02:56]} 4. c3 {[%clk 0:02:57]}  Nf6 {[%clk 0:02:57]} 5. Nd2 {[%clk 0:02:56]}  Bf5 {[%clk 0:02:56]} 6. Ngf3 {[%clk 0:02:53]}  cxd4 {[%clk 0:02:55]} 7. exd4 {[%clk 0:02:51]}  Qb6 {[%clk 0:02:55]} 8. Qb3 {[%clk 0:02:50]}  e6 {[%clk 0:02:55]} 9. Qxb6 {[%clk 0:02:49]}  axb6 {[%clk 0:02:56]} 10. a3 {[%clk 0:02:49]}  Be7 {[%clk 0:02:53]} 11. Nh4 {[%clk 0:02:42]}  Bc2 {[%clk 0:02:47]} 12. Rc1 {[%clk 0:02:40]}  Nd7 {[%clk 0:02:40]} 13. Rxc2 {[%clk 0:02:35]}  Bxh4 {[%clk 0:02:39]} 14. Bb5 {[%clk 0:02:34]}  O-O {[%clk 0:02:36]} 15. Nf3 {[%clk 0:02:28]}  Be7 {[%clk 0:02:27]} 16. Re2 {[%clk 0:02:26]}  Rfc8 {[%clk 0:02:25]} 17. Kd2 {[%clk 0:02:24]}  Bf8 {[%clk 0:02:24]} 18. h4 {[%clk 0:02:23]}  Ra5 {[%clk 0:02:19]} 19. Bd3 {[%clk 0:02:16]}  Raa8 {[%clk 0:02:08]} 20. h5 {[%clk 0:02:15]}  h6 {[%clk 0:02:06]} 21. g4 {[%clk 0:02:14]}  Na5 {[%clk 0:01:56]} 22. g5 {[%clk 0:02:04]}  Nc4+ {[%clk 0:01:56]} 23. Kc2 {[%clk 0:01:58]}  Nxa3+ {[%clk 0:00:54]} 24. bxa3 {[%clk 0:01:43]}  Rxa3 {[%clk 0:00:55]} 25. Bd2 {[%clk 0:01:43]}  Ra2+ {[%clk 0:00:47]} 26. Kb3 {[%clk 0:01:40]}  Rca8 {[%clk 0:00:44]} 27. Bc1 {[%clk 0:01:26]}  Ra1 {[%clk 0:00:44]} 28. Rg1 {[%clk 0:01:16]}  hxg5 {[%clk 0:00:37]} 29. Bb2 {[%clk 0:01:08]}  Rxg1 {[%clk 0:00:36]} 30. Nxg1 {[%clk 0:01:07]}  Nb8 {[%clk 0:00:29]} 31. Nf3 {[%clk 0:00:58]}  Be7 {[%clk 0:00:29]} 32. Bc1 {[%clk 0:00:54]}  Nc6 {[%clk 0:00:30]} 33. Nxg5 {[%clk 0:00:48]}  Bxg5 {[%clk 0:00:27]} 34. Bxg5 {[%clk 0:00:48]}  f6 {[%clk 0:00:25]} 35. Bc1 {[%clk 0:00:44]}  Kf7 {[%clk 0:00:25]} 36. Ba3 {[%clk 0:00:36]}  Na5+ {[%clk 0:00:20]} 37. Kc2 {[%clk 0:00:35]}  Rc8 {[%clk 0:00:19]} 38. Bg6+ {[%clk 0:00:33]}  Kg8 {[%clk 0:00:20]} 39. Rxe6 {[%clk 0:00:31]} 1-0


[Site "https://www.chess.com"]

[Event "Titled Tuesday Blitz November 29 Late 2022"]
[White "Riff, Vincent"]
[Black "Kowalski, Igor"]
[WhiteFideId "617776"]
[BlackFideId "1172468"]
[WhiteElo "2369"]
[BlackElo "2317"]
[Result "0-1"]
[Round "03"]
[TimeControl "180+1"]
[Date "2022.11.30"]
[WhiteClock "0:00:10"]
[BlackClock "0:00:12"]

1. e4 {[%clk 0:03:00]}  c6 {[%clk 0:03:00]} 2. Nf3 {[%clk 0:02:52]}  d5 {[%clk 0:03:00]} 3. Nc3 {[%clk 0:02:53]}  Bg4 {[%clk 0:03:00]} 4. h3 {[%clk 0:02:52]}  Bxf3 {[%clk 0:03:01]} 5. Qxf3 {[%clk 0:02:52]}  e6 {[%clk 0:03:01]} 6. Be2 {[%clk 0:02:52]}  Nd7 {[%clk 0:03:02]} 7. O-O {[%clk 0:02:48]}  d4 {[%clk 0:03:02]} 8. Nb1 {[%clk 0:02:47]}  Bd6 {[%clk 0:03:02]} 9. c3 {[%clk 0:02:45]}  Ne5 {[%clk 0:03:01]} 10. Qg3 {[%clk 0:02:43]}  Nf6 {[%clk 0:02:55]} 11. d3 {[%clk 0:02:39]}  Bc7 {[%clk 0:01:40]} 12. f4 {[%clk 0:02:33]}  Ng6 {[%clk 0:01:38]} 13. c4 {[%clk 0:02:30]}  e5 {[%clk 0:01:31]} 14. f5 {[%clk 0:02:29]}  Nf4 {[%clk 0:01:32]} 15. Rxf4 {[%clk 0:02:18]}  exf4 {[%clk 0:01:33]} 16. Bxf4 {[%clk 0:02:19]}  Bxf4 {[%clk 0:01:32]} 17. Qxf4 {[%clk 0:02:19]}  O-O {[%clk 0:01:30]} 18. Nd2 {[%clk 0:02:17]}  Re8 {[%clk 0:01:24]} 19. Rf1 {[%clk 0:02:16]}  Qa5 {[%clk 0:01:21]} 20. a3 {[%clk 0:02:11]}  Nd7 {[%clk 0:01:18]} 21. Nf3 {[%clk 0:02:07]}  Ne5 {[%clk 0:01:00]} 22. f6 {[%clk 0:02:02]}  Ng6 {[%clk 0:00:51]} 23. Qg3 {[%clk 0:01:56]}  Qb6 {[%clk 0:00:44]} 24. b4 {[%clk 0:01:55]}  a5 {[%clk 0:00:41]} 25. c5 {[%clk 0:01:54]}  Qb5 {[%clk 0:00:38]} 26. Nxd4 {[%clk 0:01:53]}  Qa4 {[%clk 0:00:37]} 27. Nf5 {[%clk 0:01:52]}  axb4 {[%clk 0:00:35]} 28. axb4 {[%clk 0:01:51]}  Qxb4 {[%clk 0:00:36]} 29. fxg7 {[%clk 0:01:50]}  Qxc5+ {[%clk 0:00:36]} 30. d4 {[%clk 0:01:50]}  Qa3 {[%clk 0:00:32]} 31. Qg5 {[%clk 0:01:41]}  Re7 {[%clk 0:00:12]} 32. Qf6 {[%clk 0:01:32]}  h5 {[%clk 0:00:08]} 33. Bxh5 {[%clk 0:01:27]}  Re6 {[%clk 0:00:06]} 34. Nh6+ {[%clk 0:01:16]}  Kh7 {[%clk 0:00:07]} 35. Bxg6+ {[%clk 0:01:15]}  fxg6 {[%clk 0:00:07]} 36. Qxe6 {[%clk 0:01:16]}  Qe3+ {[%clk 0:00:08]} 37. Kh1 {[%clk 0:01:15]}  Qxh6 {[%clk 0:00:09]} 38. Kh2 {[%clk 0:00:50]}  Rg8 {[%clk 0:00:09]} 39. Qf6 {[%clk 0:00:45]}  Rxg7 {[%clk 0:00:10]} 40. Rf4 {[%clk 0:00:45]}  g5 {[%clk 0:00:09]} 41. Qf5+ {[%clk 0:00:44]}  Qg6 {[%clk 0:00:10]} 42. Qxg6+ {[%clk 0:00:38]}  Kxg6 {[%clk 0:00:11]} 43. Rf5 {[%clk 0:00:38]}  Re7 {[%clk 0:00:11]} 44. Rf8 {[%clk 0:00:29]}  Rxe4 {[%clk 0:00:11]} 45. Rb8 {[%clk 0:00:30]}  Re7 {[%clk 0:00:10]} 46. Kg3 {[%clk 0:00:29]}  Kf5 {[%clk 0:00:10]} 47. Kf3 {[%clk 0:00:29]}  Rd7 {[%clk 0:00:10]} 48. Rf8+ {[%clk 0:00:26]}  Kg6 {[%clk 0:00:09]} 49. Ke4 {[%clk 0:00:26]}  Re7+ {[%clk 0:00:09]} 50. Kd3 {[%clk 0:00:26]}  Re1 {[%clk 0:00:08]} 51. Rg8+ {[%clk 0:00:26]}  Kf5 {[%clk 0:00:07]} 52. Rf8+ {[%clk 0:00:26]}  Kg6 {[%clk 0:00:07]} 53. Rg8+ {[%clk 0:00:26]}  Kh6 {[%clk 0:00:08]} 54. Rh8+ {[%clk 0:00:25]}  Kg7 {[%clk 0:00:08]} 55. Rb8 {[%clk 0:00:25]}  Rb1 {[%clk 0:00:09]} 56. g4 {[%clk 0:00:21]}  Kf6 {[%clk 0:00:08]} 57. Rf8+ {[%clk 0:00:19]}  Ke6 {[%clk 0:00:08]} 58. Rg8 {[%clk 0:00:19]}  Rb3+ {[%clk 0:00:08]} 59. Ke4 {[%clk 0:00:18]}  Rxh3 {[%clk 0:00:08]} 60. Rxg5 {[%clk 0:00:18]}  Rh1 {[%clk 0:00:09]} 61. Rg6+ {[%clk 0:00:18]}  Kf7 {[%clk 0:00:09]} 62. Rd6 {[%clk 0:00:18]}  Ke7 {[%clk 0:00:10]} 63. Rg6 {[%clk 0:00:18]}  Re1+ {[%clk 0:00:11]} 64. Kf5 {[%clk 0:00:18]}  Kd7 {[%clk 0:00:09]} 65. Rg7+ {[%clk 0:00:18]}  Kc8 {[%clk 0:00:10]} 66. g5 {[%clk 0:00:18]}  b5 {[%clk 0:00:10]} 67. g6 {[%clk 0:00:18]}  b4 {[%clk 0:00:11]} 68. Rg8+ {[%clk 0:00:18]}  Kc7 {[%clk 0:00:11]} 69. Rh8 {[%clk 0:00:16]}  Rf1+ {[%clk 0:00:11]} 70. Ke6 {[%clk 0:00:16]}  Rg1 {[%clk 0:00:12]} 71. Kf7 {[%clk 0:00:16]}  b3 {[%clk 0:00:12]} 72. g7 {[%clk 0:00:16]}  b2 {[%clk 0:00:13]} 73. Rh1 {[%clk 0:00:09]}  Rxh1 {[%clk 0:00:12]} 74. g8=Q {[%clk 0:00:09]}  b1=Q {[%clk 0:00:13]} 75. Ke7 {[%clk 0:00:10]}  Qb4+ {[%clk 0:00:12]} 0-1


[Site "https://www.chess.com"]

[Event "Titled Tuesday Blitz November 29 Late 2022"]
[White "Risteski, Emil"]
[Black "Sarkar, Justin"]
[WhiteFideId "15005267"]
[BlackFideId "2010011"]
[WhiteElo "2251"]
[BlackElo "2239"]
[Result "1-0"]
[Round "03"]
[TimeControl "180+1"]
[Date "2022.11.30"]
[WhiteClock "0:00:16"]
[BlackClock "0:00:01"]

1. e4 {[%clk 0:02:09]}  c5 {[%clk 0:02:56]} 2. Nc3 {[%clk 0:02:09]}  Nc6 {[%clk 0:02:55]} 3. f4 {[%clk 0:02:08]}  g6 {[%clk 0:02:43]} 4. Nf3 {[%clk 0:02:08]}  Bg7 {[%clk 0:02:39]} 5. Bb5 {[%clk 0:02:09]}  d6 {[%clk 0:02:35]} 6. Bxc6+ {[%clk 0:02:07]}  bxc6 {[%clk 0:02:35]} 7. O-O {[%clk 0:02:07]}  Nf6 {[%clk 0:02:33]} 8. d3 {[%clk 0:02:07]}  O-O {[%clk 0:02:32]} 9. Qe1 {[%clk 0:02:08]}  Nd7 {[%clk 0:01:54]} 10. f5 {[%clk 0:02:00]}  Ne5 {[%clk 0:01:47]} 11. Qh4 {[%clk 0:01:45]}  e6 {[%clk 0:01:29]} 12. Bg5 {[%clk 0:01:22]}  f6 {[%clk 0:01:18]} 13. Bh6 {[%clk 0:01:09]}  exf5 {[%clk 0:01:07]} 14. Bxg7 {[%clk 0:00:49]}  Kxg7 {[%clk 0:01:05]} 15. Rae1 {[%clk 0:00:46]}  fxe4 {[%clk 0:00:56]} 16. dxe4 {[%clk 0:00:44]}  Nxf3+ {[%clk 0:00:51]} 17. Rxf3 {[%clk 0:00:42]}  f5 {[%clk 0:00:39]} 18. Qg3 {[%clk 0:00:21]}  fxe4 {[%clk 0:00:29]} 19. Rxf8 {[%clk 0:00:20]}  Qxf8 {[%clk 0:00:29]} 20. Nxe4 {[%clk 0:00:20]}  Bf5 {[%clk 0:00:23]} 21. Nxd6 {[%clk 0:00:17]}  Rd8 {[%clk 0:00:21]} 22. Qc3+ {[%clk 0:00:16]}  Kg8 {[%clk 0:00:13]} 23. Qc4+ {[%clk 0:00:13]}  Kg7 {[%clk 0:00:11]} 24. Qc3+ {[%clk 0:00:13]}  Kg8 {[%clk 0:00:11]} 25. Qc4+ {[%clk 0:00:08]}  Kg7 {[%clk 0:00:10]} 26. Nxf5+ {[%clk 0:00:02]}  Qxf5 {[%clk 0:00:10]} 27. Qc3+ {[%clk 0:00:03]}  Kg8 {[%clk 0:00:07]} 28. Rf1 {[%clk 0:00:04]}  Qe6 {[%clk 0:00:05]} 29. h3 {[%clk 0:00:04]}  Re8 {[%clk 0:00:04]} 30. Qxc5 {[%clk 0:00:03]}  Qe3+ {[%clk 0:00:04]} 31. Qxe3 {[%clk 0:00:03]}  Rxe3 {[%clk 0:00:04]} 32. Rf2 {[%clk 0:00:03]}  Re4 {[%clk 0:00:04]} 33. Kh2 {[%clk 0:00:04]}  c5 {[%clk 0:00:04]} 34. Rd2 {[%clk 0:00:05]}  c4 {[%clk 0:00:04]} 35. c3 {[%clk 0:00:05]}  Kf7 {[%clk 0:00:04]} 36. Rd4 {[%clk 0:00:05]}  Re2 {[%clk 0:00:03]} 37. Rxc4 {[%clk 0:00:05]}  Rxb2 {[%clk 0:00:03]} 38. Rc7+ {[%clk 0:00:06]}  Kf6 {[%clk 0:00:03]} 39. Rxa7 {[%clk 0:00:07]}  h5 {[%clk 0:00:03]} 40. c4 {[%clk 0:00:07]}  Rc2 {[%clk 0:00:03]} 41. Ra4 {[%clk 0:00:07]}  h4 {[%clk 0:00:02]} 42. Kg1 {[%clk 0:00:07]}  g5 {[%clk 0:00:02]} 43. Kf1 {[%clk 0:00:06]}  Ke6 {[%clk 0:00:02]} 44. Ra5 {[%clk 0:00:06]}  Rxc4 {[%clk 0:00:02]} 45. Rxg5 {[%clk 0:00:06]}  Ra4 {[%clk 0:00:02]} 46. Rg4 {[%clk 0:00:06]}  Rxa2 {[%clk 0:00:02]} 47. Rxh4 {[%clk 0:00:06]}  Kf5 {[%clk 0:00:02]} 48. Rg4 {[%clk 0:00:07]}  Rb2 {[%clk 0:00:02]} 49. Kg1 {[%clk 0:00:08]}  Rc2 {[%clk 0:00:02]} 50. Kh2 {[%clk 0:00:08]}  Rd2 {[%clk 0:00:02]} 51. Rg3 {[%clk 0:00:09]}  Rc2 {[%clk 0:00:02]} 52. Rf3+ {[%clk 0:00:10]}  Kg5 {[%clk 0:00:02]} 53. Kg3 {[%clk 0:00:11]}  Rb2 {[%clk 0:00:02]} 54. h4+ {[%clk 0:00:11]}  Kh5 {[%clk 0:00:03]} 55. Rf5+ {[%clk 0:00:11]}  Kg6 {[%clk 0:00:03]} 56. Rg5+ {[%clk 0:00:12]}  Kf6 {[%clk 0:00:02]} 57. Kh3 {[%clk 0:00:12]}  Rb3+ {[%clk 0:00:02]} 58. g3 {[%clk 0:00:13]}  Ra3 {[%clk 0:00:02]} 59. Rg4 {[%clk 0:00:13]}  Rb3 {[%clk 0:00:02]} 60. Rf4+ {[%clk 0:00:14]}  Kg6 {[%clk 0:00:02]} 61. Kg4 {[%clk 0:00:15]}  Ra3 {[%clk 0:00:02]} 62. h5+ {[%clk 0:00:15]}  Kh6 {[%clk 0:00:02]} 63. Rf6+ {[%clk 0:00:15]}  Kg7 {[%clk 0:00:02]} 64. Rg6+ {[%clk 0:00:16]}  Kh7 {[%clk 0:00:02]} 65. Kh4 {[%clk 0:00:17]}  Ra4+ {[%clk 0:00:02]} 66. g4 {[%clk 0:00:18]}  Rb4 {[%clk 0:00:02]} 67. Rg5 {[%clk 0:00:18]}  Ra4 {[%clk 0:00:02]} 68. Rf5 {[%clk 0:00:18]}  Rb4 {[%clk 0:00:02]} 69. Kg5 {[%clk 0:00:19]}  Ra4 {[%clk 0:00:02]} 70. Rf7+ {[%clk 0:00:19]}  Kg8 {[%clk 0:00:02]} 71. Re7 {[%clk 0:00:19]}  Kh8 {[%clk 0:00:02]} 72. Re6 {[%clk 0:00:17]}  Rb4 {[%clk 0:00:02]} 73. h6 {[%clk 0:00:17]}  Ra4 {[%clk 0:00:02]} 74. Kh5 {[%clk 0:00:17]}  Ra5+ {[%clk 0:00:02]} 75. g5 {[%clk 0:00:17]}  Rb5 {[%clk 0:00:01]} 76. Kg6 {[%clk 0:00:17]}  Rb8 {[%clk 0:00:02]} 77. Re5 {[%clk 0:00:15]}  Rg8+ {[%clk 0:00:01]} 78. Kh5 {[%clk 0:00:16]}  Ra8 {[%clk 0:00:01]} 79. g6 {[%clk 0:00:16]} 1-0


[Site "https://www.chess.com"]

[Event "Titled Tuesday Blitz November 29 Late 2022"]
[White "Rodriguez Santiago, Jaime"]
[Black "Urbina Perez, Juan Antonio"]
[WhiteFideId "3100898"]
[BlackFideId "2217368"]
[WhiteElo "2025"]
[BlackElo "2197"]
[Result "1/2-1/2"]
[Round "03"]
[TimeControl "180+1"]
[Date "2022.11.30"]
[WhiteClock "0:00:28"]
[BlackClock "0:00:19"]

1. c4 {[%clk 0:03:00]}  c6 {[%clk 0:02:56]} 2. d4 {[%clk 0:02:59]}  d5 {[%clk 0:02:57]} 3. cxd5 {[%clk 0:02:59]}  cxd5 {[%clk 0:02:58]} 4. Bf4 {[%clk 0:02:58]}  Nc6 {[%clk 0:02:58]} 5. e3 {[%clk 0:02:57]}  Nf6 {[%clk 0:02:58]} 6. Nc3 {[%clk 0:02:55]}  a6 {[%clk 0:02:59]} 7. Qb3 {[%clk 0:02:54]}  Na5 {[%clk 0:02:54]} 8. Qa4+ {[%clk 0:02:53]}  Bd7 {[%clk 0:02:53]} 9. Qd1 {[%clk 0:02:53]}  e6 {[%clk 0:02:52]} 10. Nf3 {[%clk 0:02:53]}  Rc8 {[%clk 0:02:50]} 11. Bd3 {[%clk 0:02:51]}  Be7 {[%clk 0:02:49]} 12. Ne5 {[%clk 0:02:50]}  O-O {[%clk 0:02:48]} 13. O-O {[%clk 0:02:47]}  Nc6 {[%clk 0:02:48]} 14. h3 {[%clk 0:02:40]}  b5 {[%clk 0:02:45]} 15. Rc1 {[%clk 0:02:28]}  Nxe5 {[%clk 0:02:44]} 16. Bxe5 {[%clk 0:02:26]}  Bc6 {[%clk 0:02:41]} 17. Bh2 {[%clk 0:02:17]}  Bd6 {[%clk 0:02:39]} 18. f4 {[%clk 0:02:16]}  b4 {[%clk 0:02:34]} 19. Ne2 {[%clk 0:02:13]}  a5 {[%clk 0:02:32]} 20. g4 {[%clk 0:01:59]}  Qb6 {[%clk 0:02:30]} 21. g5 {[%clk 0:01:51]}  Ne4 {[%clk 0:02:30]} 22. Qe1 {[%clk 0:01:43]}  Bb5 {[%clk 0:02:21]} 23. Bxb5 {[%clk 0:01:22]}  Qxb5 {[%clk 0:02:19]} 24. Ng3 {[%clk 0:01:21]}  Nxg3 {[%clk 0:02:03]} 25. Bxg3 {[%clk 0:01:20]}  Qd3 {[%clk 0:01:59]} 26. Bf2 {[%clk 0:01:10]}  Qf5 {[%clk 0:01:55]} 27. Kg2 {[%clk 0:01:08]}  f6 {[%clk 0:01:52]} 28. h4 {[%clk 0:01:04]}  Qg4+ {[%clk 0:01:45]} 29. Bg3 {[%clk 0:01:01]}  fxg5 {[%clk 0:01:43]} 30. hxg5 {[%clk 0:01:00]}  Qf5 {[%clk 0:01:27]} 31. Qe2 {[%clk 0:00:53]}  Qe4+ {[%clk 0:01:20]} 32. Qf3 {[%clk 0:00:53]}  Qd3 {[%clk 0:01:20]} 33. Rxc8 {[%clk 0:00:50]}  Rxc8 {[%clk 0:01:20]} 34. Rf2 {[%clk 0:00:50]}  g6 {[%clk 0:01:11]} 35. Qg4 {[%clk 0:00:46]}  Re8 {[%clk 0:01:03]} 36. Qe2 {[%clk 0:00:43]}  Qe4+ {[%clk 0:01:01]} 37. Qf3 {[%clk 0:00:43]}  Qf5 {[%clk 0:01:00]} 38. Qe2 {[%clk 0:00:43]}  Rc8 {[%clk 0:00:58]} 39. b3 {[%clk 0:00:39]}  Rc1 {[%clk 0:00:57]} 40. Rf1 {[%clk 0:00:38]}  Qe4+ {[%clk 0:00:49]} 41. Kh3 {[%clk 0:00:34]}  Rxf1 {[%clk 0:00:46]} 42. Qxf1 {[%clk 0:00:33]}  Qxe3 {[%clk 0:00:44]} 43. Kg4 {[%clk 0:00:34]}  Qxd4 {[%clk 0:00:38]} 44. Qa6 {[%clk 0:00:34]}  Qc5 {[%clk 0:00:33]} 45. Qa8+ {[%clk 0:00:32]}  Kg7 {[%clk 0:00:31]} 46. Qe8 {[%clk 0:00:28]}  Be7 {[%clk 0:00:30]} 47. Bf2 {[%clk 0:00:27]}  Qxf2 {[%clk 0:00:17]} 48. Qxe7+ {[%clk 0:00:26]}  Kg8 {[%clk 0:00:18]} 49. Qe8+ {[%clk 0:00:27]}  Kg7 {[%clk 0:00:18]} 50. Qe7+ {[%clk 0:00:27]}  Kg8 {[%clk 0:00:18]} 51. Qe8+ {[%clk 0:00:27]}  Kg7 {[%clk 0:00:19]} 52. Qe7+ {[%clk 0:00:28]} 1/2-1/2


[Site "https://www.chess.com"]

[Event "Titled Tuesday Blitz November 29 Late 2022"]
[White "Romero Ruscalleda, Josep"]
[Black "Danielyan, Vahe"]
[WhiteFideId "2231859"]
[BlackFideId "13304828"]
[WhiteElo "2183"]
[BlackElo "2423"]
[Result "1-0"]
[Round "03"]
[TimeControl "180+1"]
[Date "2022.11.30"]
[WhiteClock "0:00:18"]
[BlackClock "0:01:20"]

1. e4 {[%clk 0:03:00]}  d6 {[%clk 0:02:58]} 2. d4 {[%clk 0:03:00]}  Nf6 {[%clk 0:02:59]} 3. Nc3 {[%clk 0:02:59]}  e5 {[%clk 0:03:00]} 4. Nf3 {[%clk 0:02:59]}  Nbd7 {[%clk 0:03:00]} 5. Bc4 {[%clk 0:02:58]}  Be7 {[%clk 0:03:00]} 6. O-O {[%clk 0:02:56]}  c6 {[%clk 0:03:00]} 7. a4 {[%clk 0:02:56]}  Qc7 {[%clk 0:02:59]} 8. h3 {[%clk 0:02:53]}  h6 {[%clk 0:02:58]} 9. Be3 {[%clk 0:02:52]}  g5 {[%clk 0:02:57]} 10. dxe5 {[%clk 0:02:46]}  dxe5 {[%clk 0:02:55]} 11. Qd2 {[%clk 0:02:41]}  Nf8 {[%clk 0:02:49]} 12. Nh2 {[%clk 0:02:31]}  Be6 {[%clk 0:02:47]} 13. Be2 {[%clk 0:02:25]}  Ng6 {[%clk 0:02:44]} 14. Rad1 {[%clk 0:02:16]}  Nf4 {[%clk 0:02:42]} 15. Rfe1 {[%clk 0:01:37]}  Rg8 {[%clk 0:02:40]} 16. Kh1 {[%clk 0:01:32]}  a5 {[%clk 0:02:35]} 17. Ng4 {[%clk 0:01:18]}  Nxg4 {[%clk 0:02:34]} 18. Bxg4 {[%clk 0:01:17]}  Bxg4 {[%clk 0:02:23]} 19. hxg4 {[%clk 0:01:17]}  Qc8 {[%clk 0:02:24]} 20. Bxf4 {[%clk 0:01:14]}  gxf4 {[%clk 0:02:25]} 21. f3 {[%clk 0:01:13]}  h5 {[%clk 0:02:23]} 22. gxh5 {[%clk 0:01:12]}  Bc5 {[%clk 0:02:16]} 23. g4 {[%clk 0:01:02]}  fxg3 {[%clk 0:02:13]} 24. Kg2 {[%clk 0:01:03]}  Qe6 {[%clk 0:02:11]} 25. Rh1 {[%clk 0:00:55]}  Bd4 {[%clk 0:02:04]} 26. Ne2 {[%clk 0:00:49]}  O-O-O {[%clk 0:02:04]} 27. Nxd4 {[%clk 0:00:47]}  exd4 {[%clk 0:02:04]} 28. Qxa5 {[%clk 0:00:43]}  Qc4 {[%clk 0:02:04]} 29. Rd2 {[%clk 0:00:37]}  Kb8 {[%clk 0:02:03]} 30. h6 {[%clk 0:00:32]}  Rde8 {[%clk 0:01:35]} 31. b3 {[%clk 0:00:29]}  Qe6 {[%clk 0:01:31]} 32. Rxd4 {[%clk 0:00:26]}  Qf6 {[%clk 0:01:27]} 33. Qb6 {[%clk 0:00:20]}  Rh8 {[%clk 0:01:20]} 34. Rd7 {[%clk 0:00:18]} 1-0


[Site "https://www.chess.com"]

[Event "Titled Tuesday Blitz November 29 Late 2022"]
[White "Rose, Felix"]
[Black "Chirilov, James A"]
[WhiteFideId "5105722"]
[BlackFideId "30976677"]
[WhiteElo "2039"]
[BlackElo "1790"]
[Result "0-1"]
[Round "03"]
[TimeControl "180+1"]
[Date "2022.11.30"]
[WhiteClock "0:00:58"]
[BlackClock "0:01:20"]

1. e4 {[%clk 0:03:00]}  c5 {[%clk 0:02:59]} 2. Nf3 {[%clk 0:03:00]}  d6 {[%clk 0:02:59]} 3. d4 {[%clk 0:03:00]}  cxd4 {[%clk 0:03:00]} 4. Nxd4 {[%clk 0:03:01]}  Nf6 {[%clk 0:02:59]} 5. Nc3 {[%clk 0:03:01]}  a6 {[%clk 0:02:59]} 6. f3 {[%clk 0:03:01]}  e5 {[%clk 0:02:55]} 7. Nb3 {[%clk 0:03:02]}  Be7 {[%clk 0:02:55]} 8. Be3 {[%clk 0:03:02]}  h5 {[%clk 0:02:54]} 9. Nd5 {[%clk 0:03:00]}  Nxd5 {[%clk 0:02:53]} 10. exd5 {[%clk 0:03:01]}  Bg5 {[%clk 0:02:53]} 11. Qd2 {[%clk 0:02:57]}  Bxe3 {[%clk 0:02:54]} 12. Qxe3 {[%clk 0:02:57]}  Nd7 {[%clk 0:02:54]} 13. O-O-O {[%clk 0:02:57]}  Nf6 {[%clk 0:02:53]} 14. Kb1 {[%clk 0:02:56]}  Qc7 {[%clk 0:02:52]} 15. h4 {[%clk 0:02:54]}  Bf5 {[%clk 0:02:52]} 16. Bd3 {[%clk 0:02:54]}  Bxd3 {[%clk 0:02:27]} 17. Rxd3 {[%clk 0:02:52]}  O-O {[%clk 0:02:27]} 18. g4 {[%clk 0:02:50]}  hxg4 {[%clk 0:02:25]} 19. h5 {[%clk 0:02:50]}  Qc4 {[%clk 0:02:09]} 20. h6 {[%clk 0:02:29]}  Qf4 {[%clk 0:02:08]} 21. hxg7 {[%clk 0:02:28]}  Kxg7 {[%clk 0:02:09]} 22. Qxf4 {[%clk 0:02:17]}  exf4 {[%clk 0:02:08]} 23. fxg4 {[%clk 0:02:18]}  Rh8 {[%clk 0:01:52]} 24. Rg1 {[%clk 0:02:15]}  Rae8 {[%clk 0:01:43]} 25. g5 {[%clk 0:02:07]}  Nd7 {[%clk 0:01:36]} 26. Nd4 {[%clk 0:02:03]}  Ne5 {[%clk 0:01:34]} 27. Rdd1 {[%clk 0:01:47]}  Kg6 {[%clk 0:01:34]} 28. Rdf1 {[%clk 0:01:46]}  Rh4 {[%clk 0:01:32]} 29. b3 {[%clk 0:01:44]}  Reh8 {[%clk 0:01:27]} 30. Kb2 {[%clk 0:01:32]}  R8h5 {[%clk 0:01:25]} 31. Ne2 {[%clk 0:01:25]}  Rxg5 {[%clk 0:01:20]} 32. Rxg5+ {[%clk 0:00:58]}  Kxg5 {[%clk 0:01:21]} 33. Rg1+ {[%clk 0:00:58]}  Rg4 {[%clk 0:01:20]} 34. Rh1 {[%clk 0:00:58]}  f3 {[%clk 0:01:20]} 35. Nc3 {[%clk 0:00:58]} 0-1


[Site "https://www.chess.com"]